Workbook

Sheet 산출내역계산
A2: 보조신청금 산출내역서
A4: 사업장정보
A5: 현장명 | G5: 공사금액 | I5: 해체확인 10일전 | J5: =WORKDAY(O7,-9) -> 2021-03-08 | L5: ~ | M5: 시작일 | O5: 2020-11-25
A6: 00건설(주)/00번지 업무시설 및 근생시설 신축공사 | G6: 2,500,000,000
I7: 발판장수 | J7: 1,2열 | M7: 종료일 | O7: 2021-03-19
A8: 공급업체명 | B8: 00가설 | D8: 법인등록번호 | G8: 1311110066182 | I8: 투 입 부 재 | M8: 시스템비계,수직보호망
A11: 산출내역(최종)
A12: 구분 | B12: 규격 | C12: 면적 | D12: 소요금액 | H12: 자체금액 | L12: 지원가능금액
A13: 시스템비계 | B13: 1열 | C13: =ROUND(G63,0) -> 450
B14: 2열 | C14: =ROUND(J63,0) -> 450 | S14: 안전방망
A15: 비계 합계 | C15: =C13+C14 -> 900 | D15: =D13+D14 -> 0 | H15: =H13+H14 -> 0 | L15: =SUM(L13:P14) -> 0 | T15: 단가
A16: 안전방망 | B16: 수직보호망 | C16: =ROUND(L109,0) -> 110 | D16: =ROUNDDOWN(D109,-3) -> 11,000 | H16: =D16-L16 -> 6,000 | L16: =ROUNDDOWN(D16*IF(G6<300000000,0.65,IF(G6<2000000000,0.6,IF(G6<5000000000,0.5))),-3) -> 5,000 | S16: 수직보호망 | T16: 100
B17: 플라잉넷 | C17: =ROUND(L118,0) -> 93 | D17: =ROUNDDOWN(D118,-3) -> 9,000 | H17: =D17-L17 -> 5,000 | L17: =ROUNDDOWN(D17*IF(G6<300000000,0.65,IF(G6<2000000000,0.6,IF(G6<5000000000,0.5))),-3) -> 4,000 | S17: 플라잉넷 | T17: 100
A18: 총 합계 | D18: =D15+D16+D17 -> 20,000 | H18: =H15+H16+H17 -> 11,000 | L18: =L15+L16+L17 -> 9,000
A20: 산출내역(상세) | O20: 시스템비계
A21: 구간 | F21: 구분(규격) | G21: 길이 | I21: 높이 | J21: 높이+1 | L21: 계
A22: 정면 | E22: ① | F22: 1 | G22: 150.0 | I22: 2.0 | J22: =IF(I22=0,0,I22+1) -> 3.0 | L22: =G22*J22 -> 450.0
E23: ② | F23: 2 | G23: 150.0 | I23: 2.0 | J23: =IF(I23=0,0,I23+1) -> 3.0 | L23: =G23*J23 -> 450.0
E24: ③ | F24: 1 | G24: 1000.0 | J24: =IF(I24=0,0,I24+1) -> 0.0 | L24: =G24*J24 -> 0.0
E25: ④ | J25: 0.0 | L25: =G25*J25 -> 0.0
E26: ⑤ | J26: 0.0 | L26: 0.0
E27: ⑥ | J27: 0.0 | L27: =G27*J27 -> 0.0
E28: ⑦ | J28: 0.0 | L28: =G28*J28 -> 0.0
A29: 소계 | L29: =SUM(L22:O28) -> 900.0
A30: 우측면 | J30: 0.0 | L30: =G30*J30 -> 0.0
J31: 0.0 | L31: =G31*J31 -> 0.0
J32: 0.0 | L32: =G32*J32 -> 0.0
J33: 0.0 | L33: 0.0
J34: 0.0 | L34: 0.0
J35: 0.0 | L35: =G35*J35 -> 0.0
J36: 0.0 | L36: =G36*J36 -> 0.0
A37: 소계 | L37: =SUM(L30:P36) -> 0.0
A38: 배면 | J38: 0.0 | L38: =G38*J38 -> 0.0
J39: 0.0 | L39: =G39*J39 -> 0.0
J40: 0.0 | L40: =G40*J40 -> 0.0
J41: 0.0 | L41: 0.0
J42: 0.0 | L42: 0.0
J43: 0.0 | L43: 0.0
J44: 0.0 | L44: =G44*J44 -> 0.0
A45: 소계 | L45: =SUM(L38:P44) -> 0.0
A46: 좌측면 | J46: 0.0 | L46: =G46*J46 -> 0.0
J47: 0.0 | L47: =G47*J47 -> 0.0
J48: 0.0 | L48: =G48*J48 -> 0.0
J49: 0.0 | L49: =G49*J49 -> 0.0
J50: 0.0 | L50: 0.0
J51: 0.0 | L51: =G51*J51 -> 0.0
J52: 0.0 | L52: =G52*J52 -> 0.0
A53: 소계 | L53: =SUM(L46:O52) -> 0.0
A54: 기타(계단 및 옥탑) | J54: 0.0 | L54: =G54*J54 -> 0.0
J55: 0.0 | L55: =G55*J55 -> 0.0
J56: 0.0 | L56: =G56*J56 -> 0.0
J57: 0.0 | L57: 0.0
J58: 0.0 | L58: =G58*J58 -> 0.0
J59: 0.0 | L59: 0.0
J60: 0.0 | L60: 0.0
A61: 소계 | L61: =SUM(L54:P60) -> 0.0
A63: 총 합계 | D63: 1열 | G63: =SUMIF(F22:F60,1,L22:P60) -> 450.0 | H63: + | I63: 2열 | J63: =SUMIF(F22:F60,2,L22:P60) -> 450.0 | L63: =SUM(G63,J63) -> 900.0
O66: 수직보호망
A67: 구간 | F67: 구분 | G67: 길이 | I67: 높이 | J67: 높이+1 | L67: 계
A68: 정면 | E68: 1 | F68: 1 | G68: 10.0 | I68: 10.0 | J68: =IF(I68=0,0,I68+1) -> 11.0 | L68: =G68*J68 -> 110.0
E69: 2 | J69: 0.0 | L69: =G69*J69 -> 0.0
E70: 3 | J70: 0.0 | L70: =G70*J70 -> 0.0
E71: 4 | J71: 0.0 | L71: =G71*J71 -> 0.0
E72: 5 | J72: 0.0 | L72: 0.0
J73: 0.0 | L73: =G73*J73 -> 0.0
J74: 0.0 | L74: =G74*J74 -> 0.0
A75: 소계 | L75: =SUM(L68:O74) -> 110.0
A76: 우측면 | E76: 6 | J76: 0.0 | L76: =G76*J76 -> 0.0
E77: 7 | J77: 0.0 | L77: =G77*J77 -> 0.0
E78: 8 | J78: 0.0 | L78: =G78*J78 -> 0.0
J79: 0.0 | L79: 0.0
J80: 0.0 | L80: =G80*J80 -> 0.0
J81: 0.0 | L81: =G81*J81 -> 0.0
J82: 0.0 | L82: =G82*J82 -> 0.0
A83: 소계 | L83: =SUM(L76:O82) -> 0.0
A84: 배면 | J84: 0.0 | L84: =G84*J84 -> 0.0
J85: 0.0 | L85: =G85*J85 -> 0.0
J86: 0.0 | L86: =G86*J86 -> 0.0
J87: 0.0 | L87: 0.0
J88: 0.0 | L88: =G88*J88 -> 0.0
J89: 0.0
J90: 0.0 | L90: =G90*J90 -> 0.0
A91: 소계 | L91: =SUM(L84:O90) -> 0.0
A92: 좌측면 | J92: 0.0 | L92: =G92*J92 -> 0.0
J93: 0.0 | L93: =G93*J93 -> 0.0
J94: 0.0 | L94: =G94*J94 -> 0.0
J95: 0.0 | L95: 0.0
J96: 0.0 | L96: =G96*J96 -> 0.0
J97: 0.0 | L97: =G97*J97 -> 0.0
J98: 0.0 | L98: =G98*J98 -> 0.0
A99: 소계 | L99: =SUM(L92:P98) -> 0.0
A100: 기타(계단 및 옥탑) | J100: 0.0 | L100: =G100*J100 -> 0.0
J101: 0.0 | L101: =G101*J101 -> 0.0
J102: 0.0 | L102: =G102*J102 -> 0.0
J103: 0.0 | L103: 0.0
J104: 0.0 | L104: 0.0
J105: 0.0 | L105: 0.0
J106: 0.0 | L106: 0.0
A107: 소계 | L107: =SUM(L100:O106) -> 0.0
A109: 소요금액 | D109: =L109*T16 -> ₩11,000 | I109: 물량산출합계 | L109: =ROUND(L75+L83+L91+L99+L107,0) -> 110
O112: 플라잉넷
A113: 구간 | F113: 구분 | G113: 건물길이 | J113: 내민길이 | L113: 계
A114: 정 면 | E114: 1 | F114: 3 | G114: 15.6 | I114: X | J114: 2.0 | L114: =G114*J114*F114 -> 93.3
A115: 우측면 | E115: 2 | I115: X | L115: =G115*J115*F115 -> 0.0
A116: 좌측면 | E116: 3 | I116: X | L116: 0.0
A117: 배 면 | E117: 4 | I117: X | L117: 0.0
A118: 소요금액 | D118: =L118*T17 -> ₩9,300 | I118: 물량산출합계 | L118: =ROUND(L114+L115+L116+L117,0) -> 93
